bitfinex/quotes_SOLUSD_20240621
["timestamp","ask_amount","ask_price","bid_price","bid_amount"]
[1718997597215,15.4081,132.35,132.26,6.0485]
[1718997597410,15.4081,132.35,132.27,6.0482]
[1718997598530,15.4081,132.35,132.28,6.0477]
[1718997599259,15.4081,132.35,132.27,6.048]
[1718997600055,15.4081,132.35,132.25,6.0488]
[1718997600253,6.5476,132.34,132.21,21.5252]
[1718997600565,15.3811,132.31,132.23,6.0499]
[1718997600940,15.3811,132.31,132.23,15.125]
[1718997601268,15.3811,132.31,132.26,6.0485]
[1718997601744,15.3811,132.31,132.28,6.0477]
[1718997601927,15.3811,132.31,132.27,6.0481]
[1718997602127,15.3811,132.31,132.26,6.0485]
[1718997602435,15.3811,132.31,132.25,6.0491]
[1718997602760,15.3811,132.31,132.26,6.0486]
[1718997603145,15.3811,132.31,132.27,6.048]
[1718997604057,15.3811,132.31,132.22,28.87]
[1718997604972,15.3811,132.31,132.25,6.0489]
[1718997605131,15.3811,132.31,132.22,28.87]
[1718997605334,7.8958615,132.35,132.25,28.87]
[1718997605335,22.477,132.35,132.25,28.87]
[1718997605548,22.477,132.35,132.26,0.34]
[1718997605840,22.477,132.35,132.3,6.0466]
[1718997607059,22.477,132.35,132.29,6.0471]
[1718997607362,22.477,132.35,132.21,49.2852]
[1718997607544,22.477,132.35,132.23,15.125]
[1718997607760,23.78360902,132.35,132.26,6.0484]
[1718997608051,23.78360902,132.35,132.24,0.17]
[1718997608239,23.78360902,132.35,132.28,15.1193]
[1718997608559,23.78360902,132.35,132.24,0.17]
[1718997608560,23.78360902,132.35,132.29,6.0471]
[1718997608735,23.78360902,132.35,132.26,15.1216]
[1718997608736,22.477,132.35,132.28,6.0477]
[1718997609058,22.477,132.35,132.29,6.0472]
[1718997609361,22.477,132.35,132.31,6.0462]
[1718997610044,22.477,132.35,132.28,0.17]
[1718997610248,22.477,132.35,132.29,15.1172]
[1718997610561,22.477,132.35,132.31,6.0462]
[1718997612432,22.477,132.35,132.32,6.0459]
[1718997612635,22.477,132.35,132.29,6.0471]
[1718997613058,22.477,132.35,132.3,6.0467]
[1718997613241,22.477,132.35,132.31,6.0461]
[1718997614063,22.477,132.35,132.28,15.1185]
[1718997614363,22.477,132.35,132.32,6.0459]
[1718997614742,22.477,132.35,132.33,6.0454]
[1718997615063,22.477,132.35,132.29,15.2872]
[1718997615255,22.477,132.35,132.31,6.046]
[1718997615975,22.477,132.35,132.21,15.7471]
[1718997616286,22.477,132.35,132.24,6.0492]
[1718997616457,16.18016645,132.39,132.22,6.0503]
[1718997616458,6.0419,132.33,132.22,6.0503]
[1718997616654,15.2453,132.32,132.19,36.6949]
[1718997616955,15.2453,132.32,132.21,15.1273]
[1718997617160,15.2453,132.32,132.24,6.0493]
[1718997617353,15.2453,132.32,132.21,6.0505]
[1718997617664,15.2453,132.32,132.19,15.4081]
[1718997617665,15.2453,132.32,132.23,6.0499]
[1718997617861,15.2453,132.32,132.23,6.0498]
[1718997618651,15.2453,132.32,132.22,6.0503]
[1718997619870,2.43824026,132.31,132.22,6.0503]
[1718997620365,2.43824026,132.31,132.22,15.1258]
[1718997620579,2.43824026,132.31,132.25,6.0488]
[1718997620871,2.43824026,132.31,132.24,6.0494]
[1718997621062,2.43824026,132.31,132.25,6.0491]
[1718997621448,2.43824026,132.31,132.26,6.0484]
[1718997622160,2.43824026,132.31,132.25,6.0489]
[1718997622852,15.2453,132.32,132.26,6.0486]
[1718997623175,6.0419,132.33,132.25,0.17]
[1718997623364,6.0419,132.33,132.27,15.1196]
[1718997623674,6.0419,132.33,132.31,6.0461]
[1718997623873,15.7714,132.35,132.32,6.0459]
[1718997624076,15.7714,132.35,132.31,6.0463]
[1718997625473,15.7714,132.35,132.29,6.0472]
[1718997625655,15.7714,132.35,132.29,6.0473]
[1718997625856,15.7714,132.35,132.28,6.0476]
[1718997626152,15.7714,132.35,132.29,6.0472]
[1718997626353,15.7714,132.35,132.28,6.0476]
[1718997626553,15.7714,132.35,132.29,6.047]
[1718997627683,276.1714,132.35,132.29,6.047]
[1718997628884,15.7714,132.35,132.26,15.1206]
[1718997629083,15.7714,132.35,132.31,6.0463]
[1718997629386,15.7714,132.35,132.32,6.0458]
[1718997629761,6.4802,132.4,132.36,6.0441]
[1718997629983,6.4802,132.4,132.37,6.0436]
[1718997630185,6.4283,132.43,132.33,100.17]
[1718997630486,6.4283,132.43,132.4,6.0422]
[1718997632779,15.7148,132.45,132.42,6.0412]
[1718997633176,15.7148,132.45,132.36,21.3883]
[1718997633368,15.7148,132.45,132.37,6.0436]
[1718997633684,15.7148,132.45,132.36,6.0439]
[1718997634385,15.7148,132.45,132.34,35.2825]
[1718997634860,18.14922257,132.45,132.36,6.0439]
[1718997635179,15.5897,132.42,132.3,48.767]
[1718997635363,15.5897,132.42,132.27,15.2324]
[1718997635563,6.3735,132.41,132.32,6.0456]
[1718997636271,6.3735,132.41,132.33,6.0454]
[1718997637685,6.3735,132.41,132.34,6.045]
[1718997637867,6.3735,132.41,132.33,6.0453]
[1718997638067,6.3735,132.41,132.32,6.0457]
[1718997638458,6.3735,132.41,132.29,15.118]
[1718997638664,6.3735,132.41,132.32,6.0455]
[1718997638989,6.3735,132.41,132.33,6.0452]
[1718997639167,6.3735,132.41,132.34,6.045]
[1718997639565,6.3735,132.41,132.3,15.456]
[1718997639888,6.3735,132.41,132.35,6.0444]
[1718997640275,6.3735,132.41,132.3,0.34]
[1718997640474,2.43442257,132.4,132.3,6.0466]
[1718997640668,6.16,132.38,132.29,6.0471]
[1718997640861,6.16,132.38,132.26,15.1206]
[1718997640862,6.16,132.38,132.3,6.0468]
[1718997641187,6.16,132.38,132.32,6.0458]
[1718997641390,6.16,132.38,132.31,6.0462]
[1718997641685,6.16,132.38,132.28,15.1183]
[1718997641686,6.16,132.38,132.32,6.0457]
[1718997641870,6.16,132.38,132.32,6.0458]
[1718997642801,6.16,132.38,132.31,6.0463]
[1718997643487,6.16,132.38,132.3,6.0468]
[1718997643795,6.16,132.38,132.28,6.0474]
[1718997643968,2.43442257,132.37,132.28,6.0473]
[1718997644772,2.43442257,132.37,132.29,6.0471]
[1718997645300,16.4306,132.36,132.25,15.1227]
[1718997645465,16.4306,132.36,132.28,6.0476]
[1718997645664,16.4306,132.36,132.26,6.0483]
[1718997645975,6.1678,132.35,132.25,6.049]
[1718997646178,15.1776,132.34,132.25,6.049]
[1718997646374,15.1776,132.32,132.16,93.9672]
[1718997646582,15.1776,132.32,132.22,6.0502]
[1718997646914,15.1776,132.32,132.23,6.05]
[1718997647074,15.1776,132.32,132.24,6.0494]
[1718997648083,15.1776,132.32,132.21,15.1272]
[1718997648280,15.1776,132.32,132.23,6.0496]
[1718997648692,15.1776,132.32,132.24,6.0495]
[1718997649093,15.1776,132.32,132.25,6.049]
[1718997649403,15.1776,132.32,132.26,6.0486]
[1718997649978,15.1776,132.32,132.22,15.1252]
[1718997650195,15.1776,132.32,132.24,6.0494]
[1718997650407,15.1776,132.32,132.2,15.2984]
[1718997650610,2.4288225,132.31,132.22,6.0504]
[1718997651105,2.4288225,132.31,132.23,6.05]
[1718997651486,2.4288225,132.31,132.24,6.0495]
[1718997652793,2.4288225,132.31,132.25,6.049]
[1718997653507,2.4288225,132.31,132.27,6.0479]
[1718997653712,2.4288225,132.31,132.25,6.0488]
[1718997653885,15.1776,132.32,132.25,6.0488]
[1718997654207,15.1776,132.32,132.26,6.0486]
[1718997654412,15.1776,132.32,132.27,6.0481]
[1718997655099,15.1776,132.32,132.23,15.2941]
[1718997655100,15.1776,132.32,132.29,6.047]
[1718997655483,15.1776,132.32,132.28,6.0475]
[1718997655701,15.1776,132.32,132.26,6.0483]
[1718997655905,15.1776,132.32,132.28,6.0476]
[1718997656407,15.1776,132.32,132.29,6.0472]
[1718997656594,15.1776,132.32,132.27,6.0477]
[1718997656806,15.1776,132.32,132.28,6.0476]
[1718997657092,15.1776,132.32,132.29,6.0473]
[1718997657610,15.1776,132.32,132.28,6.0475]
[1718997657979,15.1776,132.32,132.25,15.1219]
[1718997658301,15.1776,132.32,132.23,0.17]
[1718997658605,15.1776,132.32,132.27,6.0482]
[1718997660209,15.1776,132.32,132.26,6.0485]
[1718997661415,15.1776,132.32,132.24,28.86]
[1718997661588,15.1776,132.32,132.23,6.0496]
[1718997662196,15.1776,132.32,132.21,34.9106]
[1718997662403,15.1776,132.32,132.21,28.86]
[1718997662592,6.2464,132.31,132.22,6.0503]
[1718997663291,2.43442257,132.3,132.22,6.0503]
[1718997665217,2.43442257,132.3,132.23,6.05]
[1718997665702,6.2464,132.31,132.25,6.0489]
[1718997666513,6.2464,132.31,132.2,48.8185]
[1718997666717,6.2464,132.31,132.23,6.0497]
[1718997667021,6.2464,132.31,132.2,48.8185]
[1718997667202,6.2464,132.31,132.21,0.34]
[1718997667602,6.2464,132.31,132.21,15.4664]
[1718997667803,6.2464,132.31,132.21,0.34]
[1718997668012,6.2464,132.31,132.25,6.0489]
[1718997670226,6.2464,132.31,132.26,6.0486]
[1718997670435,6.2464,132.31,132.23,15.1242]
[1718997670726,6.2464,132.31,132.24,15.463]
[1718997670909,6.2464,132.31,132.28,6.0474]
[1718997671816,15.1776,132.32,132.29,6.0471]
[1718997673133,22.1127,132.35,132.3,6.0468]
[1718997673710,22.1127,132.35,132.25,15.2914]
[1718997673711,22.1127,132.35,132.25,138.0114]
[1718997674026,22.1127,132.35,132.32,6.0458]
[1718997674234,22.1127,132.35,132.32,6.0457]
[1718997674624,6.1983,132.4,132.33,6.0453]
[1718997676339,6.1983,132.4,132.32,6.0458]
[1718997677033,6.1983,132.4,132.33,6.0454]
[1718997677404,6.1983,132.4,132.32,6.0457]
[1718997677807,6.1983,132.4,132.33,6.0454]
[1718997678329,6.1983,132.4,132.31,15.455]
[1718997678631,6.1983,132.4,132.34,6.0448]
[1718997678816,6.1983,132.4,132.35,6.0445]
[1718997679022,6.1983,132.4,132.36,6.0437]
[1718997679324,6.1983,132.4,132.35,6.0444]
[1718997679634,6.1983,132.4,132.34,6.0447]
[1718997680005,6.1983,132.4,132.35,6.0444]
[1718997680208,6.1983,132.4,132.36,6.044]
[1718997680432,6.1983,132.4,132.35,6.0443]
[1718997681815,6.1983,132.4,132.33,0.34]
[1718997681816,6.1983,132.4,132.34,6.0448]
[1718997682117,6.1983,132.4,132.35,6.0445]
[1718997682503,6.1983,132.4,132.34,6.0449]
[1718997683046,6.1983,132.4,132.35,6.0445]
[1718997683215,6.1983,132.4,132.36,6.044]
[1718997684250,6.1983,132.4,132.35,6.0444]
[1718997685334,6.1983,132.4,132.34,6.0449]
[1718997685515,6.1983,132.4,132.32,6.0458]
[1718997685718,6.1983,132.4,132.31,28.82]
[1718997686243,6.1983,132.4,132.34,6.0449]
[1718997687847,6.1983,132.4,132.31,28.82]
[1718997688028,6.1983,132.4,132.32,0.34]
[1718997688419,6.1983,132.4,132.35,6.0445]
[1718997688656,6.1983,132.4,132.32,0.34]
[1718997689829,6.1983,132.4,132.31,34.866]
[1718997690155,15.1085,132.39,132.27,6.0481]
[1718997690450,15.1085,132.37,132.25,28.82]
[1718997690632,15.1085,132.37,132.27,6.0482]
[1718997691019,17.54292257,132.37,132.28,6.0477]
[1718997691724,17.54292257,132.37,132.29,6.0472]
[1718997691935,17.54292257,132.37,132.31,6.046]
[1718997692134,17.54292257,132.37,132.3,6.0467]
[1718997693239,17.54292257,132.37,132.29,6.0471]
[1718997693542,17.54292257,132.37,132.28,6.0477]
[1718997693748,15.1085,132.37,132.27,6.048]
[1718997693921,2.43442257,132.36,132.27,6.048]
[1718997694438,6.2535,132.35,132.27,6.048]
[1718997695256,16.5419,132.34,132.26,6.0485]
[1718997695426,36.5419,132.34,132.25,6.0489]
[1718997695952,15.9973,132.32,132.24,6.0494]
[1718997696446,15.9973,132.32,132.25,6.049]
[1718997696748,15.9973,132.32,132.26,6.0486]
[1718997697253,15.9973,132.32,132.25,6.0489]
[1718997697553,15.9973,132.32,132.27,6.0482]
[1718997697934,15.9973,132.32,132.26,6.0485]
[1718997698255,15.9973,132.32,132.26,6.0486]
[1718997699034,15.9973,132.32,132.28,6.0476]
[1718997699260,15.9973,132.32,132.25,15.1227]
[1718997699431,15.9973,132.32,132.28,6.0477]
[1718997699626,15.9973,132.32,132.25,15.1227]
[1718997699627,15.9973,132.32,132.3,6.0465]
[1718997699824,15.9973,132.32,132.29,6.0471]
[1718997702762,15.9973,132.32,132.3,6.0468]
[1718997703154,6.2535,132.33,132.31,6.0464]
[1718997703355,6.2535,132.33,132.28,28.82]
[1718997703550,6.2535,132.33,132.3,6.0466]
[1718997704252,6.2535,132.33,132.31,6.0463]
[1718997706251,15.3689,132.35,132.31,6.0463]
[1718997707459,15.3689,132.35,132.3,6.0466]
[1718997707963,15.3689,132.35,132.31,6.0464]
[1718997708253,15.3689,132.35,132.33,6.0454]
[1718997708664,21.7782,132.39,132.33,6.0454]
[1718997708961,21.7782,132.39,132.34,6.045]
[1718997709144,21.7782,132.39,132.33,6.0453]
[1718997709766,21.7782,132.39,132.34,6.0448]
[1718997710442,21.7782,132.39,132.35,6.0444]
[1718997712059,21.7782,132.39,132.37,6.0436]
[1718997712242,21.7782,132.39,132.36,6.0439]
[1718997712451,15.7624,132.39,132.36,6.0439]
[1718997713059,15.7624,132.39,132.35,6.0444]
[1718997714468,15.7624,132.39,132.36,6.044]
[1718997717651,22.1871,132.42,132.36,6.044]
[1718997719373,22.1871,132.42,132.35,6.0444]
[1718997719574,22.1871,132.42,132.36,6.0438]
[1718997720074,22.1871,132.42,132.35,6.0444]
[1718997720573,22.1871,132.42,132.34,0.17]
[1718997720870,22.1871,132.42,132.36,6.0438]
[1718997721069,22.1871,132.42,132.34,0.17]
[1718997721576,22.1871,132.42,132.34,28.82]
[1718997721778,22.1871,132.42,132.38,6.043]
[1718997722661,22.1871,132.42,132.37,6.0434]
[1718997723579,22.1871,132.42,132.38,6.0431]
[1718997723903,22.1871,132.42,132.35,15.4503]
[1718997723904,22.1871,132.42,132.39,6.0427]
[1718997724053,22.1871,132.42,132.37,6.0434]
[1718997724559,22.1871,132.42,132.38,6.0431]
[1718997724962,22.1871,132.42,132.39,6.0427]
[1718997725271,22.1871,132.42,132.38,6.043]
[1718997726473,22.1871,132.42,132.39,6.0427]
[1718997727050,22.1871,132.42,132.38,6.043]
[1718997728083,22.1871,132.42,132.39,6.0426]
[1718997729282,21.5335,132.45,132.38,15.1075]
[1718997729466,21.5335,132.45,132.42,6.041]
[1718997729664,15.4067,132.45,132.43,6.0409]
[1718997729965,0.8627372,132.46,132.43,6.0409]
[1718997730478,0.8627372,132.46,132.43,6.0408]
[1718997730862,0.8627372,132.46,132.42,6.0412]
[1718997731409,0.8627372,132.46,132.44,6.0404]
[1718997731577,0.8627372,132.46,132.45,6.04]
[1718997733888,0.8627372,132.46,132.45,6.21]
[1718997734058,0.8627372,132.46,132.45,6.38]
[1718997734685,0.8627372,132.46,132.45,27.01239785]
[1718997735478,0.11061891,132.48,132.47,21.1368]
[1718997735687,0.11061891,132.48,132.47,22.10910237]
[1718997735904,0.11061891,132.48,132.47,50.92910237]
[1718997736407,15.7324,132.57,132.53,6.036]
[1718997736698,15.7324,132.57,132.5,28.82]
[1718997736905,15.7324,132.57,132.52,6.0366]
[1718997737996,15.7324,132.57,132.5,34.8575]
[1718997738204,15.7324,132.57,132.48,15.0966]
[1718997738498,15.7324,132.57,132.47,29.16]
[1718997738681,15.7324,132.57,132.48,0.34]
[1718997738871,15.7324,132.57,132.48,6.0385]
[1718997739078,15.7324,132.57,132.43,28.82]
[1718997739303,15.7324,132.57,132.44,20.0]
[1718997739595,18.16682257,132.57,132.49,6.0381]
[1718997739991,18.16682257,132.57,132.44,142.72]
[1718997740183,18.16682257,132.57,132.5,6.0375]
[1718997740382,18.16682257,132.57,132.48,28.82]
[1718997740383,18.16682257,132.57,132.51,6.0372]
[1718997740902,18.16682257,132.57,132.49,15.0952]
[1718997741101,18.16682257,132.57,132.5,0.34]
[1718997741286,18.16682257,132.57,132.46,15.0978]
[1718997741485,18.16682257,132.57,132.47,48.82]
[1718997741782,18.16682257,132.57,132.48,15.4356]
[1718997741996,18.16682257,132.57,132.51,6.037]
[1718997742195,18.16682257,132.57,132.51,6.0371]
[1718997743104,18.16682257,132.57,132.53,6.0363]
[1718997743574,18.16682257,132.57,132.54,6.0357]
[1718997743776,18.16682257,132.57,132.51,15.093]
[1718997743983,18.16682257,132.57,132.53,6.0362]
[1718997744604,15.7324,132.57,132.53,6.0362]
[1718997744909,15.7324,132.57,132.51,15.093]
[1718997745212,15.7324,132.57,132.55,6.0351]
[1718997745504,15.7324,132.57,132.54,6.0358]
[1718997745879,15.7324,132.57,132.55,6.0353]
[1718997746085,6.1856,132.58,132.55,6.0353]
[1718997746281,6.1856,132.58,132.54,6.0357]
[1718997746504,6.1856,132.58,132.52,6.0365]
[1718997747177,6.1856,132.58,132.51,6.037]
[1718997747409,6.1856,132.58,132.51,6.0369]
[1718997747899,6.1856,132.58,132.51,6.037]
[1718997748105,6.1856,132.58,132.52,6.0365]
[1718997748284,6.1856,132.58,132.51,6.037]
[1718997749009,6.1856,132.58,132.5,6.0375]
[1718997749205,6.1856,132.58,132.51,6.0372]
[1718997749408,6.1856,132.58,132.5,6.0375]
[1718997749576,6.1856,132.58,132.51,6.0371]
[1718997749782,6.1856,132.58,132.52,6.0367]
[1718997750004,6.1856,132.58,132.53,6.0363]
[1718997750211,6.1856,132.58,132.52,6.0367]
[1718997750514,6.1856,132.58,132.51,6.0371]
[1718997750690,25.29822257,132.57,132.46,16.3358]
[1718997750882,6.3254,132.55,132.46,6.0394]
[1718997751079,2.43442257,132.54,132.44,43.9211]
[1718997751309,2.43442257,132.54,132.46,15.0986]
[1718997751512,2.43442257,132.54,132.48,6.0383]
[1718997751807,2.43442257,132.54,132.47,6.0389]
[1718997752111,2.43442257,132.54,132.46,15.0988]
[1718997752296,6.3254,132.55,132.52,6.0367]
[1718997752496,16.5384,132.56,132.53,6.0363]
[1718997753100,16.5384,132.56,132.53,6.0362]
[1718997754216,16.5384,132.56,132.47,16.4161]
[1718997754409,16.5384,132.56,132.5,6.0376]
[1718997754996,16.5384,132.56,132.51,6.0371]
[1718997755628,16.5384,132.56,132.5,6.0375]
[1718997756190,16.5384,132.56,132.47,15.2666]
[1718997756404,16.5384,132.56,132.47,6.0387]
[1718997756405,18.97282257,132.56,132.47,6.0387]
[1718997757212,18.97282257,132.56,132.48,6.0385]
[1718997757402,9.59,132.55,132.5,9.59]
[1718997757597,18.97282257,132.56,132.5,9.59]
[1718997757805,9.59,132.55,132.5,9.59]
[1718997760019,9.59,132.55,132.5,15.6277]
[1718997760327,18.97282257,132.56,132.52,9.59]
[1718997760824,28.56282257,132.56,132.49,6.0381]
[1718997761122,28.56282257,132.56,132.51,9.59]
[1718997761323,9.59,132.55,132.5,9.59]
[1718997761531,28.56282257,132.56,132.51,15.6272]
[1718997761698,18.97282257,132.56,132.53,9.59]
[1718997761895,2.43442257,132.56,132.55,9.59]
[1718997762107,0.8627372,132.59,132.58,6.034]
[1718997762307,0.8627372,132.59,132.58,15.624]
[1718997762912,0.8627372,132.59,132.55,0.34]
[1718997763116,0.8627372,132.59,132.58,9.59]
[1718997763507,0.8627372,132.59,132.56,6.0346]
[1718997764803,0.8627372,132.59,132.57,6.0344]
[1718997765003,0.8627372,132.59,132.53,28.73]
[1718997765323,0.8627372,132.59,132.53,6.0361]
[1718997765537,0.8627372,132.59,132.54,6.0358]
[1718997765723,0.8627372,132.59,132.55,6.0353]
[1718997765908,0.8627372,132.59,132.54,6.0357]
[1718997766909,0.8627372,132.59,132.55,6.0354]
[1718997767102,0.8627372,132.59,132.54,6.0358]
[1718997769734,0.8627372,132.59,132.51,15.092]
[1718997769939,0.8627372,132.59,132.58,6.034]
[1718997770512,0.8627372,132.59,132.57,6.0343]
[1718997772016,0.8627372,132.59,132.56,6.0348]
[1718997773832,0.8627372,132.59,132.55,6.0353]
[1718997774043,0.8627372,132.59,132.53,28.73]
[1718997774244,6.9334372,132.59,132.5,6.1897]
[1718997774409,6.9334372,132.59,132.48,31.6129]
[1718997774716,16.4937,132.58,132.54,6.0356]
[1718997775306,16.4937,132.58,132.5,15.094]
[1718997775513,16.4937,132.58,132.52,6.0365]
[1718997776416,16.4937,132.58,132.51,6.0371]
[1718997776733,16.4937,132.58,132.53,6.036]
[1718997776932,16.4937,132.58,132.54,6.0359]
[1718997777437,16.4937,132.58,132.53,15.0909]
[1718997777643,16.4937,132.58,132.55,6.0354]
[1718997778718,16.4937,132.58,132.54,6.0357]
[1718997778923,16.4937,132.58,132.53,6.0362]
[1718997780244,16.4937,132.58,132.52,28.73]
[1718997780449,16.4937,132.58,132.51,6.037]
[1718997780643,16.4937,132.58,132.53,6.0362]
[1718997781245,16.4937,132.58,132.51,6.0368]
[1718997781416,16.4937,132.58,132.52,6.0366]
[1718997783239,16.4937,132.58,132.49,6.038]
[1718997783434,16.4937,132.58,132.47,15.0977]
[1718997783435,16.4937,132.58,132.47,43.8277]
[1718997783623,16.4937,132.58,132.47,28.73]
[1718997783824,16.4937,132.58,132.45,31.0771]
[1718997784042,16.4937,132.58,132.49,6.0379]
[1718997784241,16.4937,132.58,132.5,6.0376]
[1718997784541,16.4937,132.58,132.46,15.0978]
[1718997784542,16.4937,132.58,132.47,28.73]
[1718997784842,16.4937,132.58,132.47,43.8266]
[1718997785046,16.4937,132.58,132.53,6.0359]
[1718997786232,16.4937,132.58,132.54,6.0358]
[1718997787139,16.4937,132.58,132.54,6.0356]
[1718997787317,16.4937,132.58,132.51,15.0922]
[1718997787526,16.4937,132.58,132.5,28.73]
[1718997787936,16.4937,132.58,132.52,6.0365]
[1718997788135,16.4937,132.58,132.5,34.7674]
[1718997788339,16.4937,132.58,132.51,6.0372]
[1718997788642,16.4937,132.58,132.5,34.7674]
[1718997788953,16.4937,132.58,132.47,6.0386]
[1718997789142,20.0,132.57,132.47,6.0386]
[1718997789816,20.0,132.57,132.46,6.0393]
[1718997790231,20.0,132.57,132.47,6.039]
[1718997790648,20.0,132.57,132.48,6.0384]
[1718997791844,20.0,132.57,132.46,15.0988]
[1718997791845,20.0,132.57,132.49,6.038]
[1718997792433,20.0,132.57,132.48,6.0384]
[1718997793123,20.0,132.57,132.49,6.038]
[1718997794136,20.0,132.57,132.48,6.0384]
[1718997794448,20.0,132.57,132.45,44.7073]
[1718997794651,20.0,132.57,132.46,6.0391]
[1718997795739,20.0,132.57,132.45,44.7073]
[1718997795936,20.0,132.57,132.48,6.0385]
[1718997796960,15.571,132.55,132.41,46.1465]
[1718997797264,15.8585,132.53,132.43,6.0407]
[1718997797423,15.8585,132.53,132.4,50.0571]
[1718997797629,15.8585,132.53,132.43,6.0405]
[1718997798157,15.5066,132.51,132.42,6.041]
[1718997798737,15.5066,132.51,132.43,6.0408]
[1718997801833,15.5066,132.51,132.47,6.039]
[1718997802636,15.5066,132.51,132.45,15.0998]
[1718997802846,15.5066,132.51,132.48,6.0384]
[1718997803251,15.5066,132.51,132.47,6.0388]
[1718997804365,15.5066,132.51,132.48,6.0386]
[1718997804669,15.5066,132.51,132.49,6.0381]
[1718997805252,15.5066,132.51,132.48,6.0385]
[1718997805550,6.0613,132.52,132.48,6.0385]
[1718997805941,6.0613,132.52,132.48,6.0384]
[1718997806642,16.0393,132.54,132.49,6.038]
[1718997806841,16.0393,132.54,132.47,0.17]
[1718997806842,16.0393,132.54,132.5,6.0376]
[1718997807050,16.0393,132.54,132.51,6.0372]
[1718997807662,6.1426,132.56,132.51,6.0372]
[1718997807866,16.0393,132.58,132.53,6.0363]
[1718997808167,16.0393,132.58,132.5,0.17]
[1718997808168,16.0393,132.58,132.52,6.0366]
[1718997808665,16.0393,132.58,132.54,6.0355]
[1718997808873,16.0393,132.58,132.53,6.0361]
[1718997809375,16.0393,132.58,132.54,6.0357]
[1718997809542,16.0393,132.58,132.53,6.036]
[1718997809872,16.0393,132.58,132.52,6.0366]
[1718997810948,16.0393,132.58,132.51,6.0371]
[1718997811641,16.0393,132.58,132.51,6.0368]
[1718997813074,16.0393,132.58,132.49,28.73]
[1718997813280,16.0393,132.58,132.5,6.0376]
[1718997814782,16.0393,132.58,132.51,6.0372]
[1718997815076,16.0393,132.58,132.48,0.34]
[1718997815280,16.0393,132.58,132.51,6.037]
[1718997816176,16.0393,132.58,132.49,6.0377]
[1718997816561,16.0393,132.58,132.5,6.0376]
[1718997817177,16.0393,132.58,132.51,6.0372]
[1718997818573,16.0393,132.58,132.5,6.0375]
[1718997820278,16.0393,132.58,132.47,0.34]
[1718997820279,16.0393,132.58,132.49,6.038]
[1718997820485,16.0393,132.58,132.47,15.4367]
[1718997820659,16.0393,132.58,132.51,6.0372]
[1718997820867,16.0393,132.58,132.5,6.0375]
[1718997821177,16.0393,132.58,132.51,6.0372]
[1718997822579,16.0393,132.58,132.52,6.0367]
[1718997822765,16.0393,132.58,132.53,6.0362]
[1718997823484,16.0393,132.58,132.54,6.0357]
[1718997825390,16.0393,132.58,132.53,6.0361]
[1718997825589,16.0393,132.58,132.51,6.037]
[1718997826060,16.0393,132.58,132.5,6.0376]
[1718997826385,16.0393,132.58,132.48,28.73]
[1718997826568,16.0393,132.58,132.5,6.0376]
[1718997826768,16.0393,132.58,132.51,6.0371]
[1718997826965,16.0393,132.58,132.52,6.0365]
[1718997827169,16.0393,132.58,132.51,6.037]
[1718997829077,16.0393,132.58,132.52,6.0366]
[1718997829379,0.8627372,132.59,132.57,6.0343]
[1718997830292,0.8627372,132.59,132.58,6.034]
[1718997831162,0.8627372,132.59,132.53,6.2062]
[1718997831371,0.8627372,132.59,132.54,0.17]